{"text_format":"3","workbook":"xlsx","n_sheets":2,"sheets":["Začátek","Plánovač rozpočtu na dovolenou"],"not_rendered":{"defined_names":1},"read":"whole","date_system":"1900"}

{"sheet":"Začátek","index":0,"n_rows":4,"n_cols":2,"rows_kept":4}
[null,"Jak používat tuto šablonu"]
[null,"Sledujte svoje výdaje pomocí této šablony rozpočtu na svátky."]
[null,"Začněte tím, že do každé tabulky kategorií zadáte rozpočeta skutečné výdaje."]
[null,"Rozpočet na svátky, celková vydaná částka a rozdíl se vypočítají automaticky."]

{"sheet":"Plánovač rozpočtu na dovolenou","index":1,"n_rows":36,"n_cols":14,"rows_kept":36,"merged":[[0,2,5,7],[2,10,2,11],[8,2,8,5],[8,10,8,13],[18,2,18,5],[18,10,18,13],[29,2,29,5],[29,10,29,13]]}
[null,null,"Plánovač rozpočtu na dovolenou"]
[]
[{"$nulls":10},"ROZPOČET NA SVÁTKY",null,null,{"$f":"SUM(Dárky[Rozpočet],Balení[Rozpočet],(Cestování[Rozpočet],(Stravování[Rozpočet],(Zábava[Rozpočet],Různé[Rozpočet]))))","v":{"v":750,"d":"750.00 Kč"}}]
[{"$nulls":10},"SKUTEČNÉ VÝDAJE",null,null,{"$f":"SUM((Dárky[Skutečnost],(Balení[Skutečnost],(Cestování[Skutečnost],(Stravování[Skutečnost],(Zábava[Skutečnost],(Různé[Skutečnost])))))))","v":{"v":820,"d":"820.00 Kč"}}]
[]
[{"$nulls":10},"ROZDÍL (překročený/nevyužitý rozpočet)",null,null,{"$f":"SUM(N3-N4)","v":{"v":-70,"d":"-70.00 Kč"}}]
[]
[]
[null,null,"DÁRKY",{"$nulls":7},"SVÁTEČNÍ JÍDLO"]
[null,null,"Položka","Rozpočet","Skutečnost","Rozdíl",{"$nulls":4},"Položka","Rozpočet","Skutečnost","Rozdíl"]
[null,null,"Rodina",{"v":500,"d":"500.00 Kč"},{"v":495,"d":"495.00 Kč"},{"$f":"Dárky[[#This Row],[Rozpočet]]-Dárky[[#This Row],[Skutečnost]]","v":{"v":5,"d":"5.00 Kč"}},{"$nulls":4},"Potraviny",null,null,{"$f":"Stravování[[#This Row],[Rozpočet]]-Stravování[[#This Row],[Skutečnost]]","v":{"v":0,"d":"0.00 Kč"}}]
[null,null,"Přátelé",{"v":250,"d":"250.00 Kč"},{"v":325,"d":"325.00 Kč"},{"$f":"Dárky[[#This Row],[Rozpočet]]-Dárky[[#This Row],[Skutečnost]]","v":{"v":-75,"d":"-75.00 Kč"}},{"$nulls":4},"Nápoje",null,null,{"$f":"Stravování[[#This Row],[Rozpočet]]-Stravování[[#This Row],[Skutečnost]]","v":{"v":0,"d":"0.00 Kč"}}]
[null,null,"Kolegové",null,null,{"$f":"Dárky[[#This Row],[Rozpočet]]-Dárky[[#This Row],[Skutečnost]]","v":{"v":0,"d":"0.00 Kč"}},{"$nulls":4},"Výzdoba",null,null,{"$f":"Stravování[[#This Row],[Rozpočet]]-Stravování[[#This Row],[Skutečnost]]","v":{"v":0,"d":"0.00 Kč"}}]
[null,null,"Učitelé, chůvy atd.",null,null,{"$f":"Dárky[[#This Row],[Rozpočet]]-Dárky[[#This Row],[Skutečnost]]","v":{"v":0,"d":"0.00 Kč"}},{"$nulls":4},"Další (Pokud chcete přidat řádek, stiskněte v posledním sloupci tohoto řádku klávesu Tab.)",null,null,{"$f":"Stravování[[#This Row],[Rozpočet]]-Stravování[[#This Row],[Skutečnost]]","v":{"v":0,"d":"0.00 Kč"}}]
[null,null,"Dobročinné dary",null,null,{"$f":"Dárky[[#This Row],[Rozpočet]]-Dárky[[#This Row],[Skutečnost]]","v":{"v":0,"d":"0.00 Kč"}},{"$nulls":7},{"$f":"Stravování[[#This Row],[Rozpočet]]-Stravování[[#This Row],[Skutečnost]]","v":{"v":0,"d":"0.00 Kč"}}]
[null,null,"Další (Pokud chcete přidat řádek, stiskněte v posledním sloupci tohoto řádku klávesu Tab.)",null,null,{"$f":"Dárky[[#This Row],[Rozpočet]]-Dárky[[#This Row],[Skutečnost]]","v":{"v":0,"d":"0.00 Kč"}}]
[null,null,"Celkem",{"$f":"SUBTOTAL(109,Dárky[Rozpočet])","v":{"v":750,"d":"750.00 Kč"}},{"$f":"SUBTOTAL(109,Dárky[Skutečnost])","v":{"v":820,"d":"820.00 Kč"}},{"$f":"SUBTOTAL(109,Dárky[Rozdíl])","v":{"v":-70,"d":"-70.00 Kč"}},{"$nulls":4},"Celkem",{"$f":"SUBTOTAL(109,Stravování[Rozpočet])","v":{"v":0,"d":"0.00 Kč"}},{"$f":"SUBTOTAL(109,Stravování[Skutečnost])","v":{"v":0,"d":"0.00 Kč"}},{"$f":"SUBTOTAL(109,Stravování[Rozdíl])","v":{"v":0,"d":"0.00 Kč"}}]
[]
[null,null,"BALENÍ",{"$nulls":7},"ZÁBAVA"]
[null,null,"Položka","Rozpočet","Skutečnost","Rozdíl",{"$nulls":4},"Položka","Rozpočet","Skutečnost","Rozdíl"]
[null,null,"Balení dárků",null,null,{"$f":"Balení[[#This Row],[Rozpočet]]-Balení[[#This Row],[Skutečnost]]","v":{"v":0,"d":"0.00 Kč"}},{"$nulls":4},"Personál na večírku (obsluha baru, dodavatel občerstvení, úklid atd.)",null,null,{"$f":"Zábava[[#This Row],[Rozpočet]]-Zábava[[#This Row],[Skutečnost]]","v":{"v":0,"d":"0.00 Kč"}}]
[null,null,"Značky",null,null,{"$f":"Balení[[#This Row],[Rozpočet]]-Balení[[#This Row],[Skutečnost]]","v":{"v":0,"d":"0.00 Kč"}},{"$nulls":4},"Výzdoba",null,null,{"$f":"Zábava[[#This Row],[Rozpočet]]-Zábava[[#This Row],[Skutečnost]]","v":{"v":0,"d":"0.00 Kč"}}]
[null,null,"Spotřební materiál (stuha, lepicí páska atd.)",null,null,{"$f":"Balení[[#This Row],[Rozpočet]]-Balení[[#This Row],[Skutečnost]]","v":{"v":0,"d":"0.00 Kč"}},{"$nulls":4},"Potraviny a nápoje",null,null,{"$f":"Zábava[[#This Row],[Rozpočet]]-Zábava[[#This Row],[Skutečnost]]","v":{"v":0,"d":"0.00 Kč"}}]
[null,null,"Krabice",null,null,{"$f":"Balení[[#This Row],[Rozpočet]]-Balení[[#This Row],[Skutečnost]]","v":{"v":0,"d":"0.00 Kč"}},{"$nulls":4},"Oblečení",null,null,{"$f":"Zábava[[#This Row],[Rozpočet]]-Zábava[[#This Row],[Skutečnost]]","v":{"v":0,"d":"0.00 Kč"}}]
[null,null,"Poštovné",null,null,{"$f":"Balení[[#This Row],[Rozpočet]]-Balení[[#This Row],[Skutečnost]]","v":{"v":0,"d":"0.00 Kč"}},{"$nulls":4},"Vstupenky",null,null,{"$f":"Zábava[[#This Row],[Rozpočet]]-Zábava[[#This Row],[Skutečnost]]","v":{"v":0,"d":"0.00 Kč"}}]
[null,null,"Další (Pokud chcete přidat řádek, stiskněte v posledním sloupci tohoto řádku klávesu Tab.)",null,null,{"$f":"Balení[[#This Row],[Rozpočet]]-Balení[[#This Row],[Skutečnost]]","v":{"v":0,"d":"0.00 Kč"}},{"$nulls":4},"Jídlo mimo dům",null,null,{"$f":"Zábava[[#This Row],[Rozpočet]]-Zábava[[#This Row],[Skutečnost]]","v":{"v":0,"d":"0.00 Kč"}}]
[{"$nulls":10},"Další (Pokud chcete přidat řádek, stiskněte v posledním sloupci tohoto řádku klávesu Tab.)",null,null,{"$f":"Zábava[[#This Row],[Rozpočet]]-Zábava[[#This Row],[Skutečnost]]","v":{"v":0,"d":"0.00 Kč"}}]
[null,null,"Celkem",{"$f":"SUBTOTAL(109,Balení[Rozpočet])","v":{"v":0,"d":"0.00 Kč"}},{"$f":"SUBTOTAL(109,Balení[Skutečnost])","v":{"v":0,"d":"0.00 Kč"}},{"$f":"SUBTOTAL(109,Balení[Rozdíl])","v":{"v":0,"d":"0.00 Kč"}},{"$nulls":4},"Celkem",{"$f":"SUBTOTAL(109,Zábava[Rozpočet])","v":{"v":0,"d":"0.00 Kč"}},{"$f":"SUBTOTAL(109,Zábava[Skutečnost])","v":{"v":0,"d":"0.00 Kč"}},{"$f":"SUBTOTAL(109,Zábava[Rozdíl])","v":{"v":0,"d":"0.00 Kč"}}]
[]
[null,null,"CESTOVÁNÍ",{"$nulls":7},"RŮZNÉ"]
[null,null,"Položka","Rozpočet","Skutečnost","Rozdíl",{"$nulls":4},"Položka","Rozpočet","Skutečnost","Rozdíl"]
[null,null,"Letenky",null,null,{"$f":"Cestování[[#This Row],[Rozpočet]]-Cestování[[#This Row],[Skutečnost]]","v":{"v":0,"d":"0.00 Kč"}},{"$nulls":4},"Sváteční fotky",null,null,{"$f":"Různé[[#This Row],[Rozpočet]]-Různé[[#This Row],[Skutečnost]]","v":{"v":0,"d":"0.00 Kč"}}]
[null,null,"Ubytování",null,null,{"$f":"Cestování[[#This Row],[Rozpočet]]-Cestování[[#This Row],[Skutečnost]]","v":{"v":0,"d":"0.00 Kč"}},{"$nulls":4},"Palivo ",null,null,{"$f":"Různé[[#This Row],[Rozpočet]]-Různé[[#This Row],[Skutečnost]]","v":{"v":0,"d":"0.00 Kč"}}]
[null,null,"Doprava",null,null,{"$f":"Cestování[[#This Row],[Rozpočet]]-Cestování[[#This Row],[Skutečnost]]","v":{"v":0,"d":"0.00 Kč"}},{"$nulls":4},"Další (Pokud chcete přidat řádek, stiskněte v posledním sloupci tohoto řádku klávesu Tab.)",null,null,{"$f":"Různé[[#This Row],[Rozpočet]]-Různé[[#This Row],[Skutečnost]]","v":{"v":0,"d":"0.00 Kč"}}]
[null,null,"Další (Pokud chcete přidat řádek, stiskněte v posledním sloupci tohoto řádku klávesu Tab.)",null,null,{"$f":"Cestování[[#This Row],[Rozpočet]]-Cestování[[#This Row],[Skutečnost]]","v":{"v":0,"d":"0.00 Kč"}}]
[null,null,"Celkem",{"$f":"SUBTOTAL(109,Cestování[Rozpočet])","v":{"v":0,"d":"0.00 Kč"}},{"$f":"SUBTOTAL(109,Cestování[Skutečnost])","v":{"v":0,"d":"0.00 Kč"}},{"$f":"SUBTOTAL(109,Cestování[Rozdíl])","v":{"v":0,"d":"0.00 Kč"}},{"$nulls":4},"Celkem",{"$f":"SUBTOTAL(109,Různé[Rozpočet])","v":{"v":0,"d":"0.00 Kč"}},{"$f":"SUBTOTAL(109,Různé[Skutečnost])","v":{"v":0,"d":"0.00 Kč"}},{"$f":"SUBTOTAL(109,Různé[Rozdíl])","v":{"v":0,"d":"0.00 Kč"}}]